[Event "Live Chess"]
[Site "Chess.com"]
[Date "2023.05.21"]
[Round "-"]
[White "ramses-IIG"]
[Black "raminguy"]
[Result "0-1"]
[WhiteElo "837"]
[BlackElo "1938"]
[TimeControl "300"]
[EndTime "18:46:37 PDT"]
[Termination "raminguy won by checkmate"]

1. e4 {[%clk 0:04:52.5]} 1... e5 {[%clk 0:04:59.1]} 2. Nf3 {[%clk 0:04:52.4]}
2... Nc6 {[%clk 0:04:57.7]} 3. Bc4 {[%clk 0:04:50.2]} 3... Bc5 {[%clk
0:04:56.8]} 4. d3 {[%clk 0:04:47.9]} 4... Nf6 {[%clk 0:04:56.2]} 5. Ng5 {[%clk
0:04:46.1]} 5... O-O {[%clk 0:04:54.8]} 6. h4 {[%clk 0:04:44.5]} 6... h6 {[%clk
0:04:53.6]} 7. c3 {[%clk 0:04:43.2]} 7... d5 {[%clk 0:04:50.6]} 8. exd5 {[%clk
0:04:41.7]} 8... Nxd5 {[%clk 0:04:49.5]} 9. Qh5 {[%clk 0:04:09.4]} 9... Be6
{[%clk 0:04:17.2]} 10. Ne4 {[%clk 0:04:05.9]} 10... Nf6 {[%clk 0:04:06.4]} 11.
Nxf6+ {[%clk 0:04:02.6]} 11... Qxf6 {[%clk 0:04:04.9]} 12. Bg5 {[%clk
0:03:56.3]} 12... Qxf2+ {[%clk 0:04:02.1]} 13. Kd1 {[%clk 0:03:54.2]} 13... Bxc4
{[%clk 0:03:57.5]} 14. Bxh6 {[%clk 0:03:40.4]} 14... Bxd3 {[%clk 0:03:56.1]} 15.
Nd2 {[%clk 0:03:23]} 15... gxh6 {[%clk 0:03:47.5]} 16. Qxh6 {[%clk 0:03:02.8]}
16... Be3 {[%clk 0:03:42.6]} 17. Qxe3 {[%clk 0:02:31.4]} 17... Qxe3 {[%clk
0:03:39.7]} 18. Re1 {[%clk 0:02:26.2]} 18... Qf2 {[%clk 0:03:36.5]} 19. Rf1
{[%clk 0:02:23.6]} 19... Be2+ {[%clk 0:03:32.9]} 20. Kc2 {[%clk 0:02:21.2]}
20... Bxf1 {[%clk 0:03:32]} 21. Rxf1 {[%clk 0:02:17.6]} 21... Qxg2 {[%clk
0:03:30.4]} 22. h5 {[%clk 0:02:12.5]} 22... Rad8 {[%clk 0:03:27.2]} 23. Kb3
{[%clk 0:02:09]} 23... Rxd2 {[%clk 0:03:25.2]} 24. Rf6 {[%clk 0:02:01.6]} 24...
Rxb2+ {[%clk 0:03:22.4]} 25. Kc4 {[%clk 0:01:59.5]} 25... Qe4+ {[%clk
0:03:19.9]} 26. Kc5 {[%clk 0:01:57.2]} 26... b6# {[%clk 0:03:17.4]} 0-1

[Event "Live Chess"]
[Site "Chess.com"]
[Date "2023.05.21"]
[Round "-"]
[White "whatnot126"]
[Black "ViktorTheCoolBoy"]
[Result "0-1"]
[WhiteElo "2050"]
[BlackElo "2514"]
[TimeControl "300"]
[EndTime "18:47:30 PDT"]
[Termination "ViktorTheCoolBoy won by resignation"]

1. e4 {[%clk 0:04:59.4]} 1... e5 {[%clk 0:04:58.7]} 2. Nf3 {[%clk 0:04:58.3]}
2... Nc6 {[%clk 0:04:47.5]} 3. d4 {[%clk 0:04:57.2]} 3... exd4 {[%clk
0:04:45.8]} 4. Bc4 {[%clk 0:04:56.1]} 4... Nf6 {[%clk 0:04:44.5]} 5. O-O {[%clk
0:04:52.6]} 5... Nxe4 {[%clk 0:04:43]} 6. Nc3 {[%clk 0:04:46.3]} 6... dxc3
{[%clk 0:04:39]} 7. Bxf7+ {[%clk 0:04:44.6]} 7... Kxf7 {[%clk 0:04:36]} 8. Qd5+
{[%clk 0:04:43.2]} 8... Ke8 {[%clk 0:04:32.8]} 9. Re1 {[%clk 0:04:37.7]} 9...
Ne7 {[%clk 0:04:30.2]} 10. Rxe4 {[%clk 0:04:28.1]} 10... d6 {[%clk 0:04:24.3]}
11. Ng5 {[%clk 0:04:20.9]} 11... c6 {[%clk 0:04:14.7]} 12. Qf7+ {[%clk 0:04:12]}
12... Kd7 {[%clk 0:04:13.4]} 13. Ne6 {[%clk 0:03:59.1]} 13... Qe8 {[%clk
0:04:10.4]} 14. Qxe8+ {[%clk 0:03:37.8]} 14... Kxe8 {[%clk 0:04:08.1]} 15. Nc7+
{[%clk 0:03:36.8]} 15... Kd8 {[%clk 0:04:07.5]} 16. Nxa8 {[%clk 0:03:36]} 16...
Bf5 {[%clk 0:04:06.4]} 17. Re2 {[%clk 0:03:29.4]} 17... h6 {[%clk 0:04:02]} 18.
Bf4 {[%clk 0:03:28.3]} 18... Kd7 {[%clk 0:03:59.7]} 19. bxc3 {[%clk 0:03:19.2]}
19... Nd5 {[%clk 0:03:58]} 20. Bg3 {[%clk 0:03:15.8]} 20... Be7 {[%clk
0:03:55.9]} 21. Rd1 {[%clk 0:03:12.7]} 21... Nxc3 {[%clk 0:03:53.6]} 22. Rxe7+
{[%clk 0:03:06.6]} 22... Kxe7 {[%clk 0:03:52.3]} 23. Rxd6 {[%clk 0:03:03.4]}
23... Ne2+ {[%clk 0:03:48.5]} 0-1

[Event "Live Chess"]
[Site "Chess.com"]
[Date "2023.05.21"]
[Round "-"]
[White "romchyk1219"]
[Black "IgorSchukin"]
[Result "0-1"]
[WhiteElo "639"]
[BlackElo "1783"]
[TimeControl "300"]
[EndTime "18:48:19 PDT"]
[Termination "IgorSchukin won by resignation"]

1. e4 {[%clk 0:04:58.2]} 1... c5 {[%clk 0:04:57.4]} 2. Nf3 {[%clk 0:04:56.7]}
2... Nc6 {[%clk 0:04:56.9]} 3. g3 {[%clk 0:04:55.9]} 3... d5 {[%clk 0:04:54.9]}
4. Bg2 {[%clk 0:04:52.9]} 4... dxe4 {[%clk 0:04:53.4]} 5. Ng5 {[%clk 0:04:50.6]}
5... Nf6 {[%clk 0:04:51]} 6. Nxe4 {[%clk 0:04:48.8]} 6... Nxe4 {[%clk
0:04:49.7]} 7. Bxe4 {[%clk 0:04:48.7]} 7... Bh3 {[%clk 0:04:47.4]} 8. d3 {[%clk
0:04:44.2]} 8... Qb6 {[%clk 0:04:34.1]} 9. Be3 {[%clk 0:04:41]} 9... e5 {[%clk
0:04:30.9]} 10. b4 {[%clk 0:04:38.4]} 10... Qxb4+ {[%clk 0:04:25.9]} 11. Bd2
{[%clk 0:04:33.5]} 11... Qb6 {[%clk 0:04:20.8]} 12. Nc3 {[%clk 0:04:27.8]} 12...
O-O-O {[%clk 0:04:15.3]} 13. Be3 {[%clk 0:04:25.4]} 13... Nd4 {[%clk 0:04:12.7]}
14. Qd2 {[%clk 0:04:23]} 14... f5 {[%clk 0:04:10]} 15. Bd5 {[%clk 0:04:15.6]}
15... Rxd5 {[%clk 0:04:02.4]} 16. Nxd5 {[%clk 0:04:13]} 16... Qb2 {[%clk
0:03:59.5]} 17. Bxd4 {[%clk 0:04:07.9]} 17... Qxd4 {[%clk 0:03:51.4]} 18. Nc3
{[%clk 0:03:52.1]} 18... h5 {[%clk 0:03:37]} 19. O-O-O {[%clk 0:03:42.7]} 19...
g6 {[%clk 0:03:32]} 20. Nb5 {[%clk 0:03:39.7]} 20... Qa4 {[%clk 0:03:27.9]} 21.
Nc3 {[%clk 0:03:37]} 21... Qa3+ {[%clk 0:03:24.5]} 22. Kb1 {[%clk 0:03:29.7]}
22... Bh6 {[%clk 0:03:22.9]} 23. Qc1 {[%clk 0:03:05.4]} 23... Bxc1 {[%clk
0:03:19.9]} 24. Rxc1 {[%clk 0:03:03.2]} 0-1

[Event "Live Chess"]
[Site "Chess.com"]
[Date "2023.05.21"]
[Round "-"]
[White "raminguy"]
[Black "ChessClubLive"]
[Result "1-0"]
[WhiteElo "1940"]
[BlackElo "1456"]
[TimeControl "300"]
[EndTime "18:48:54 PDT"]
[Termination "raminguy won by resignation"]

1. d4 {[%clk 0:04:59]} 1... d5 {[%clk 0:04:58.2]} 2. Nc3 {[%clk 0:04:58.3]} 2...
Nc6 {[%clk 0:04:57.2]} 3. e4 {[%clk 0:04:56.9]} 3... dxe4 {[%clk 0:04:54.7]} 4.
d5 {[%clk 0:04:56.8]} 4... Nb8 {[%clk 0:04:50.3]} 5. Nxe4 {[%clk 0:04:55]} 5...
e6 {[%clk 0:04:49.4]} 6. Bb5+ {[%clk 0:04:52.9]} 6... Bd7 {[%clk 0:04:42.8]} 7.
dxe6 {[%clk 0:04:17.5]} 7... Bxb5 {[%clk 0:04:39]} 8. exf7+ {[%clk 0:04:16]}
8... Ke7 {[%clk 0:04:32.7]} 9. fxg8=N+ {[%clk 0:04:05.6]} 9... Rxg8 {[%clk
0:04:29.8]} 10. Bg5+ {[%clk 0:04:03.7]} 10... Kf7 {[%clk 0:03:58.9]} 11. Bxd8
{[%clk 0:04:01.8]} 1-0

[Event "Live Chess"]
[Site "Chess.com"]
[Date "2023.05.21"]
[Round "-"]
[White "chessfiction"]
[Black "GEMdzq"]
[Result "0-1"]
[WhiteElo "2347"]
[BlackElo "2265"]
[TimeControl "300"]
[EndTime "18:49:02 PDT"]
[Termination "GEMdzq won by resignation"]

1. d4 {[%clk 0:04:58.8]} 1... Nf6 {[%clk 0:04:58.5]} 2. Nc3 {[%clk 0:04:57.3]}
2... e6 {[%clk 0:04:56.9]} 3. Bg5 {[%clk 0:04:56.7]} 3... c5 {[%clk 0:04:55.4]}
4. d5 {[%clk 0:04:53.5]} 4... Qb6 {[%clk 0:04:52.6]} 5. Bxf6 {[%clk 0:04:51.2]}
5... gxf6 {[%clk 0:04:52.5]} 6. Qd2 {[%clk 0:04:47.4]} 6... h5 {[%clk
0:04:47.2]} 7. O-O-O {[%clk 0:04:42.1]} 7... d6 {[%clk 0:04:34.7]} 8. e4 {[%clk
0:04:39.4]} 8... Nd7 {[%clk 0:04:28.2]} 9. Kb1 {[%clk 0:04:37.5]} 9... Ne5
{[%clk 0:04:26.2]} 10. f4 {[%clk 0:04:36.2]} 10... Bh6 {[%clk 0:04:22.9]} 11.
dxe6 {[%clk 0:04:34.7]} 11... Bxe6 {[%clk 0:04:18]} 12. Bb5+ {[%clk 0:04:33.9]}
12... Ke7 {[%clk 0:04:15.8]} 13. Qf2 {[%clk 0:04:22.2]} 13... Ng4 {[%clk
0:04:13.3]} 14. Qh4 {[%clk 0:04:14.4]} 14... Bxf4 {[%clk 0:04:02.6]} 15. Nh3
{[%clk 0:03:58.9]} 15... Be5 {[%clk 0:04:00.2]} 16. a4 {[%clk 0:03:31.5]} 16...
Bxc3 {[%clk 0:03:50.3]} 17. bxc3 {[%clk 0:03:31.4]} 17... a6 {[%clk 0:03:49.3]}
18. c4 {[%clk 0:03:30.1]} 18... axb5 {[%clk 0:03:48.2]} 19. cxb5 {[%clk
0:03:29.3]} 19... Rxa4 {[%clk 0:03:46.9]} 0-1

[Event "Live Chess"]
[Site "Chess.com"]
[Date "2023.05.21"]
[Round "-"]
[White "manthanit"]
[Black "Conradical12"]
[Result "0-1"]
[WhiteElo "1050"]
[BlackElo "1651"]
[TimeControl "300"]
[EndTime "18:49:09 PDT"]
[Termination "Conradical12 won on time"]

1. e4 {[%clk 0:04:59.4]} 1... e5 {[%clk 0:04:58.3]} 2. Nf3 {[%clk 0:04:58.9]}
2... Nc6 {[%clk 0:04:57.7]} 3. Nc3 {[%clk 0:04:58]} 3... Nf6 {[%clk 0:04:57.2]}
4. d4 {[%clk 0:04:57.4]} 4... Bb4 {[%clk 0:04:54.3]} 5. dxe5 {[%clk 0:04:53.8]}
5... Nxe4 {[%clk 0:04:53.7]} 6. Qd3 {[%clk 0:04:36]} 6... Nc5 {[%clk 0:04:42.5]}
7. Qf5 {[%clk 0:04:21.2]} 7... O-O {[%clk 0:04:36]} 8. Ng5 {[%clk 0:04:19.8]}
8... g6 {[%clk 0:04:30.8]} 9. Qf6 {[%clk 0:04:16.3]} 9... Qxf6 {[%clk
0:04:27.6]} 10. exf6 {[%clk 0:04:15.4]} 10... Nd4 {[%clk 0:04:21.8]} 11. Kd1
{[%clk 0:03:46.4]} 11... d6 {[%clk 0:03:56.6]} 12. Be3 {[%clk 0:03:42.4]} 12...
Nce6 {[%clk 0:03:48.9]} 13. Bxd4 {[%clk 0:03:12.4]} 13... Nxd4 {[%clk
0:03:48.8]} 14. a3 {[%clk 0:03:10.3]} 14... Ba5 {[%clk 0:03:41.4]} 15. b4 {[%clk
0:03:08.9]} 15... Bb6 {[%clk 0:03:40.3]} 16. Nd5 {[%clk 0:03:00]} 16... Nc6
{[%clk 0:03:28.2]} 17. f3 {[%clk 0:02:44.3]} 17... Be6 {[%clk 0:03:20.8]} 18.
Bc4 {[%clk 0:02:40.5]} 18... Bxd5 {[%clk 0:03:17.1]} 19. Bxd5 {[%clk 0:02:39.7]}
19... Bd4 {[%clk 0:03:15.2]} 20. Rb1 {[%clk 0:02:32.2]} 20... Bxf6 {[%clk
0:03:11.6]} 21. h4 {[%clk 0:02:26.2]} 21... a6 {[%clk 0:03:02.1]} 22. Kd2 {[%clk
0:02:16]} 22... Rfe8 {[%clk 0:02:46.1]} 23. c3 {[%clk 0:02:08.8]} 23... Re5
{[%clk 0:02:37.8]} 24. Bxf7+ {[%clk 0:02:01.8]} 24... Kh8 {[%clk 0:02:05.6]} 25.
Bc4 {[%clk 0:01:52.4]} 25... Bxg5+ {[%clk 0:02:02.4]} 26. hxg5 {[%clk
0:01:51.3]} 26... Rxg5 {[%clk 0:02:01]} 27. Rh2 {[%clk 0:01:38.7]} 27... Ne5
{[%clk 0:01:56.7]} 28. Bb3 {[%clk 0:01:34.1]} 28... Rf8 {[%clk 0:01:42.9]} 29.
Rbh1 {[%clk 0:01:30.2]} 29... h5 {[%clk 0:01:38.1]} 30. a4 {[%clk 0:01:25.9]}
30... b5 {[%clk 0:01:08.4]} 31. axb5 {[%clk 0:01:24.3]} 31... axb5 {[%clk
0:01:06.1]} 32. Rf1 {[%clk 0:01:22.3]} 32... Rg3 {[%clk 0:00:57.2]} 33. Bc2
{[%clk 0:01:16.3]} 33... Kg7 {[%clk 0:00:47.3]} 34. f4 {[%clk 0:01:09.4]} 34...
Ng4 {[%clk 0:00:45.5]} 35. Rhh1 {[%clk 0:00:11.9]} 35... Rxg2+ {[%clk
0:00:42.8]} 36. Kc1 {[%clk 0:00:10.4]} 36... Ne3 {[%clk 0:00:41.1]} 37. Re1
{[%clk 0:00:06.7]} 37... Nxc2 {[%clk 0:00:36.4]} 38. Re7+ {[%clk 0:00:04.7]}
38... Kf6 {[%clk 0:00:33.5]} 39. Rxc7 {[%clk 0:00:02.7]} 39... Ne3 {[%clk
0:00:28.4]} 40. Re1 {[%clk 0:00:00.4]} 40... Ra8 {[%clk 0:00:27.1]} 0-1

[Event "Live Chess"]
[Site "Chess.com"]
[Date "2023.05.21"]
[Round "-"]
[White "grillage"]
[Black "1600x"]
[Result "1-0"]
[WhiteElo "1819"]
[BlackElo "1887"]
[TimeControl "300"]
[EndTime "18:49:10 PDT"]
[Termination "grillage won by resignation"]

1. d4 {[%clk 0:04:59]} 1... Nf6 {[%clk 0:04:49.9]} 2. Nc3 {[%clk 0:04:44.1]}
2... d5 {[%clk 0:04:47.8]} 3. Bf4 {[%clk 0:04:42.3]} 3... a6 {[%clk 0:04:44.4]}
4. e3 {[%clk 0:04:40.6]} 4... Nc6 {[%clk 0:04:43]} 5. Nf3 {[%clk 0:04:38.5]}
5... h6 {[%clk 0:04:39.5]} 6. Bd3 {[%clk 0:04:24.2]} 6... g5 {[%clk 0:04:37.3]}
7. Bg3 {[%clk 0:04:20.1]} 7... Bg7 {[%clk 0:04:35.4]} 8. h3 {[%clk 0:04:12.1]}
8... O-O {[%clk 0:04:32.6]} 9. Qd2 {[%clk 0:04:02.7]} 9... Nb4 {[%clk 0:04:30]}
10. Be2 {[%clk 0:03:55.8]} 10... Nh5 {[%clk 0:04:27.8]} 11. Be5 {[%clk
0:03:51.9]} 11... Bf5 {[%clk 0:04:25.5]} 12. Bd3 {[%clk 0:03:39.5]} 12... Nxd3+
{[%clk 0:04:23.5]} 13. cxd3 {[%clk 0:03:38.9]} 13... Be6 {[%clk 0:04:21.9]} 14.
Bxg7 {[%clk 0:03:34.7]} 14... f6 {[%clk 0:04:15.5]} 15. Bxf8 {[%clk 0:03:29.2]}
15... Qxf8 {[%clk 0:04:15.4]} 16. O-O {[%clk 0:03:12.4]} 16... g4 {[%clk
0:04:12.8]} 17. hxg4 {[%clk 0:03:09.6]} 17... Bxg4 {[%clk 0:04:10.6]} 18. Nh2
{[%clk 0:03:02.5]} 18... Be6 {[%clk 0:04:08]} 19. e4 {[%clk 0:03:01.1]} 19...
Rd8 {[%clk 0:04:05.8]} 20. Qe3 {[%clk 0:02:50.9]} 20... Ng7 {[%clk 0:04:03]} 21.
Nf3 {[%clk 0:02:42.5]} 21... dxe4 {[%clk 0:04:01.1]} 22. dxe4 {[%clk 0:02:40.5]}
22... Bc4 {[%clk 0:03:59]} 23. Rfd1 {[%clk 0:02:36.9]} 23... f5 {[%clk
0:03:57.2]} 24. Qxh6 {[%clk 0:02:34]} 24... c5 {[%clk 0:03:54.6]} 25. dxc5
{[%clk 0:02:18.7]} 25... Ne6 {[%clk 0:03:52.1]} 26. Qxf8+ {[%clk 0:02:16.4]}
26... Rxf8 {[%clk 0:03:49.8]} 27. Rd7 {[%clk 0:02:04]} 27... Nxc5 {[%clk
0:03:43.2]} 28. Rc7 {[%clk 0:01:57.5]} 28... Nd3 {[%clk 0:03:40.6]} 29. Rxc4
{[%clk 0:01:53.1]} 29... Nxb2 {[%clk 0:03:38]} 30. Rb4 {[%clk 0:01:50.3]} 30...
Nd3 {[%clk 0:03:35.4]} 31. Rxb7 {[%clk 0:01:49.2]} 31... Rc8 {[%clk 0:03:33.8]}
32. Nd5 {[%clk 0:01:46.5]} 32... Rc2 {[%clk 0:03:31.9]} 33. Nxe7+ {[%clk
0:01:38.9]} 33... Kf8 {[%clk 0:03:29.9]} 34. Nxf5 {[%clk 0:01:30]} 34... a5
{[%clk 0:03:28.2]} 35. Ng5 {[%clk 0:01:24.7]} 35... Rb2 {[%clk 0:03:26]} 36.
Rxb2 {[%clk 0:01:21.2]} 36... Nxb2 {[%clk 0:03:24.4]} 37. Ne6+ {[%clk
0:01:17.8]} 37... Kg8 {[%clk 0:03:22.7]} 38. e5 {[%clk 0:01:15.3]} 38... Kf7
{[%clk 0:03:21.1]} 39. Ned4 {[%clk 0:01:13.1]} 39... Kg6 {[%clk 0:03:19.1]} 40.
f4 {[%clk 0:01:12.1]} 40... Nd3 {[%clk 0:03:17.1]} 41. g3 {[%clk 0:01:06.5]}
41... Nc5 {[%clk 0:03:15.4]} 42. Kg2 {[%clk 0:01:02.6]} 42... Ne6 {[%clk
0:03:14.1]} 43. Nxe6 {[%clk 0:01:00.9]} 43... Kxf5 {[%clk 0:03:13.2]} 44. Nd4+
{[%clk 0:00:58.5]} 44... Ke4 {[%clk 0:03:11.5]} 45. e6 {[%clk 0:00:57.4]} 45...
Kxd4 {[%clk 0:03:09.3]} 46. e7 {[%clk 0:00:56.6]} 46... Kc5 {[%clk 0:03:07.6]}
47. e8=Q {[%clk 0:00:54.5]} 47... Kb4 {[%clk 0:03:06.3]} 48. Rb1+ {[%clk
0:00:49.5]} 48... Kc3 {[%clk 0:03:03.6]} 49. Qe3+ {[%clk 0:00:47.7]} 1-0

[Event "Live Chess"]
[Site "Chess.com"]
[Date "2023.05.21"]
[Round "-"]
[White "Tilbs_12"]
[Black "Biranidun"]
[Result "0-1"]
[WhiteElo "1560"]
[BlackElo "2580"]
[TimeControl "300"]
[EndTime "18:50:31 PDT"]
[Termination "Biranidun won by resignation"]

1. e4 {[%clk 0:04:57.3]} 1... c5 {[%clk 0:04:58.4]} 2. c3 {[%clk 0:04:56.2]}
2... Nf6 {[%clk 0:04:57.5]} 3. e5 {[%clk 0:04:54]} 3... Nd5 {[%clk 0:04:57.2]}
4. d4 {[%clk 0:04:53.6]} 4... cxd4 {[%clk 0:04:57.1]} 5. cxd4 {[%clk 0:04:52.8]}
5... d6 {[%clk 0:04:56.7]} 6. f4 {[%clk 0:04:48.5]} 6... Nc6 {[%clk 0:04:55.3]}
7. Nf3 {[%clk 0:04:46.8]} 7... Bg4 {[%clk 0:04:54]} 8. Be2 {[%clk 0:04:42.9]}
8... dxe5 {[%clk 0:04:49.9]} 9. fxe5 {[%clk 0:04:41.3]} 9... Qb6 {[%clk
0:04:46.1]} 10. Nc3 {[%clk 0:04:33.4]} 10... Rd8 {[%clk 0:04:43.6]} 11. O-O
{[%clk 0:04:13.9]} 11... e6 {[%clk 0:04:30.7]} 12. a3 {[%clk 0:04:02.3]} 12...
Bxf3 {[%clk 0:04:26.9]} 13. Bxf3 {[%clk 0:03:54.5]} 13... Qxd4+ {[%clk
0:03:44.4]} 14. Qxd4 {[%clk 0:03:49.1]} 14... Nxd4 {[%clk 0:03:44.3]} 15. Nxd5
{[%clk 0:03:39]} 15... Nxf3+ {[%clk 0:03:42.7]} 16. Rxf3 {[%clk 0:03:37.1]}
16... Rxd5 {[%clk 0:03:42.6]} 17. Bf4 {[%clk 0:03:33.2]} 17... Bc5+ {[%clk
0:03:41.2]} 18. Kh1 {[%clk 0:03:30.8]} 18... O-O {[%clk 0:03:36.8]} 19. h3
{[%clk 0:03:29.4]} 19... Rfd8 {[%clk 0:03:35.3]} 20. Raf1 {[%clk 0:03:26.6]}
20... h6 {[%clk 0:03:30.9]} 21. Bg3 {[%clk 0:03:22.5]} 21... R8d7 {[%clk
0:03:29.8]} 22. b4 {[%clk 0:03:11.6]} 22... Bd4 {[%clk 0:03:28.8]} 23. Bf2
{[%clk 0:03:05.7]} 23... Bxf2 {[%clk 0:03:26.8]} 24. R1xf2 {[%clk 0:03:04.7]}
24... Rxe5 {[%clk 0:03:26.3]} 25. Rc3 {[%clk 0:03:03.7]} 25... Rf5 {[%clk
0:03:20.1]} 26. Rfc2 {[%clk 0:03:01.4]} 26... h5 {[%clk 0:03:16.8]} 27. Rc7
{[%clk 0:02:57.6]} 27... Rfd5 {[%clk 0:03:15.8]} 28. Kg1 {[%clk 0:02:46]} 28...
g6 {[%clk 0:03:14.3]} 29. Kf2 {[%clk 0:02:45]} 29... Kg7 {[%clk 0:03:13.8]} 30.
Ke3 {[%clk 0:02:44]} 30... h4 {[%clk 0:03:11.9]} 31. R7c5 {[%clk 0:02:34.1]}
31... Rxc5 {[%clk 0:03:10.6]} 32. Rxc5 {[%clk 0:02:33.8]} 32... f5 {[%clk
0:03:06.9]} 33. a4 {[%clk 0:02:30.3]} 33... Kf6 {[%clk 0:03:04.9]} 34. b5 {[%clk
0:02:26.4]} 34... g5 {[%clk 0:02:57.6]} 35. a5 {[%clk 0:02:24.5]} 35... Rd5
{[%clk 0:02:56.3]} 36. Rxd5 {[%clk 0:02:17.6]} 36... exd5 {[%clk 0:02:56.2]} 37.
Kd4 {[%clk 0:02:16.9]} 37... Ke6 {[%clk 0:02:55.4]} 38. b6 {[%clk 0:02:11.7]}
38... axb6 {[%clk 0:02:53.6]} 39. axb6 {[%clk 0:02:10.8]} 39... Kd6 {[%clk
0:02:53.3]} 40. Kc3 {[%clk 0:02:05.8]} 40... Kc5 {[%clk 0:02:51.6]} 41. Kd3
{[%clk 0:02:04.6]} 41... Kxb6 {[%clk 0:02:51.1]} 42. Kd4 {[%clk 0:02:04.1]}
42... Kc6 {[%clk 0:02:50.7]} 0-1

[Event "Live Chess"]
[Site "Chess.com"]
[Date "2023.05.21"]
[Round "-"]
[White "xx_blindpuffin_xx"]
[Black "ClassyChameleon"]
[Result "1-0"]
[WhiteElo "2200"]
[BlackElo "1085"]
[TimeControl "300"]
[EndTime "18:50:59 PDT"]
[Termination "xx_blindpuffin_xx won on time"]

1. d4 {[%clk 0:04:50.6]} 1... d5 {[%clk 0:04:58.7]} 2. Bf4 {[%clk 0:04:45.2]}
2... Nf6 {[%clk 0:04:56.1]} 3. e3 {[%clk 0:04:37.4]} 3... Bf5 {[%clk 0:04:52.8]}
4. Nf3 {[%clk 0:04:28.2]} 4... e6 {[%clk 0:04:43.8]} 5. h3 {[%clk 0:04:15.5]}
5... Nc6 {[%clk 0:04:36.8]} 6. Be2 {[%clk 0:04:13.6]} 6... Nb4 {[%clk
0:04:34.1]} 7. Na3 {[%clk 0:04:09.2]} 7... Be7 {[%clk 0:04:25.9]} 8. c3 {[%clk
0:04:08.1]} 8... Nc6 {[%clk 0:04:19.6]} 9. Bb5 {[%clk 0:04:06.5]} 9... O-O
{[%clk 0:04:17.4]} 10. Qb3 {[%clk 0:03:58.1]} 10... Na5 {[%clk 0:04:15.8]} 11.
Qa4 {[%clk 0:03:54.7]} 11... b6 {[%clk 0:04:10.9]} 12. O-O {[%clk 0:03:32.3]}
12... Bxa3 {[%clk 0:03:48]} 13. Qxa3 {[%clk 0:03:22.3]} 13... Nc4 {[%clk
0:03:43.7]} 14. Qb3 {[%clk 0:03:15]} 14... Nd6 {[%clk 0:03:36.7]} 15. Be2 {[%clk
0:03:11.1]} 15... Nde4 {[%clk 0:03:32.1]} 16. Rfd1 {[%clk 0:03:06.1]} 16... h6
{[%clk 0:02:45.6]} 17. c4 {[%clk 0:03:02.6]} 17... dxc4 {[%clk 0:02:39.8]} 18.
Qxc4 {[%clk 0:03:02.5]} 18... Nd5 {[%clk 0:02:25.7]} 19. Bh2 {[%clk 0:02:58.5]}
19... c5 {[%clk 0:01:52.5]} 20. dxc5 {[%clk 0:02:55.5]} 20... bxc5 {[%clk
0:01:52.1]} 21. Nd2 {[%clk 0:02:45.6]} 21... Nxd2 {[%clk 0:01:41.6]} 22. Rxd2
{[%clk 0:02:41.7]} 22... Qa5 {[%clk 0:01:34.6]} 23. Rad1 {[%clk 0:02:34.8]}
23... Nb6 {[%clk 0:01:28.8]} 24. Qh4 {[%clk 0:02:21.2]} 24... Bb1 {[%clk
0:01:12.1]} 25. a3 {[%clk 0:02:09.9]} 25... Ba2 {[%clk 0:01:01.1]} 26. b4 {[%clk
0:02:06.5]} 26... cxb4 {[%clk 0:00:56.4]} 27. Rxa2 {[%clk 0:02:04.5]} 27... bxa3
{[%clk 0:00:51.8]} 28. Rda1 {[%clk 0:01:59.5]} 28... Rac8 {[%clk 0:00:29.9]} 29.
Rxa3 {[%clk 0:01:44.7]} 29... Qd2 {[%clk 0:00:26.2]} 30. Bf1 {[%clk 0:01:38.5]}
30... Nc4 {[%clk 0:00:19]} 31. Bxc4 {[%clk 0:01:36.6]} 31... Rxc4 {[%clk
0:00:17.5]} 32. Qxc4 {[%clk 0:01:33.8]} 32... Qb2 {[%clk 0:00:13.5]} 33. Qc3
{[%clk 0:01:31.4]} 33... Qxc3 {[%clk 0:00:12.2]} 34. Rxc3 {[%clk 0:01:31.3]}
34... Rd8 {[%clk 0:00:11.5]} 35. Bg3 {[%clk 0:01:30.1]} 35... Kf8 {[%clk
0:00:10.4]} 36. Rca3 {[%clk 0:01:28.6]} 36... Ke8 {[%clk 0:00:08.5]} 37. Rxa7
{[%clk 0:01:28.5]} 37... f5 {[%clk 0:00:06.6]} 38. Rxg7 {[%clk 0:01:26.1]} 38...
h5 {[%clk 0:00:03.8]} 39. Raa7 {[%clk 0:01:24.2]} 39... Rd1+ {[%clk 0:00:02.8]}
40. Kh2 {[%clk 0:01:22.5]} 40... Kf8 {[%clk 0:00:02.3]} 41. Rgb7 {[%clk
0:01:21.1]} 1-0

[Event "Live Chess"]
[Site "Chess.com"]
[Date "2023.05.21"]
[Round "-"]
[White "alanmike75"]
[Black "LutherSullivan"]
[Result "0-1"]
[WhiteElo "1582"]
[BlackElo "2101"]
[TimeControl "300"]
[EndTime "18:51:22 PDT"]
[Termination "LutherSullivan won by resignation"]

1. e4 {[%clk 0:04:59.3]} 1... e5 {[%clk 0:04:57.6]} 2. Nf3 {[%clk 0:04:58.2]}
2... Nc6 {[%clk 0:04:57.2]} 3. d4 {[%clk 0:04:56.9]} 3... exd4 {[%clk
0:04:56.6]} 4. Bc4 {[%clk 0:04:56.1]} 4... Nf6 {[%clk 0:04:55.1]} 5. O-O {[%clk
0:04:55.1]} 5... Nxe4 {[%clk 0:04:54]} 6. Re1 {[%clk 0:04:54.1]} 6... d5 {[%clk
0:04:53.4]} 7. Bxd5 {[%clk 0:04:53.1]} 7... Qxd5 {[%clk 0:04:53]} 8. Nc3 {[%clk
0:04:52.1]} 8... Qd7 {[%clk 0:04:51.4]} 9. Nxe4 {[%clk 0:04:50.6]} 9... Be7
{[%clk 0:04:50.7]} 10. Nc5 {[%clk 0:04:47.4]} 10... Qd5 {[%clk 0:04:46.7]} 11.
Nd3 {[%clk 0:04:44.3]} 11... O-O {[%clk 0:04:37.6]} 12. Bf4 {[%clk 0:04:33.4]}
12... Bd6 {[%clk 0:04:07.4]} 13. Bxd6 {[%clk 0:04:31.3]} 13... Qxd6 {[%clk
0:04:04.6]} 14. Qd2 {[%clk 0:04:29.8]} 14... Bg4 {[%clk 0:04:00.9]} 15. Nfe5
{[%clk 0:04:23.6]} 15... Bf5 {[%clk 0:03:48.3]} 16. Nxc6 {[%clk 0:04:12.9]}
16... Qxc6 {[%clk 0:03:39.5]} 17. Qf4 {[%clk 0:04:02.1]} 17... Bxd3 {[%clk
0:03:31.8]} 18. cxd3 {[%clk 0:04:00.2]} 18... Rae8 {[%clk 0:03:29.4]} 19. Qxd4
{[%clk 0:03:56.1]} 19... Rxe1+ {[%clk 0:03:07]} 20. Rxe1 {[%clk 0:03:54]} 20...
Re8 {[%clk 0:03:06.5]} 21. Rxe8+ {[%clk 0:03:52.3]} 21... Qxe8 {[%clk
0:03:06.1]} 22. Qe3 {[%clk 0:03:49.4]} 22... Qc6 {[%clk 0:03:00.4]} 23. h3
{[%clk 0:03:45.7]} 23... g6 {[%clk 0:02:56]} 24. Qd4 {[%clk 0:03:39.1]} 24... b6
{[%clk 0:02:51.9]} 25. Qd8+ {[%clk 0:03:36.9]} 25... Kg7 {[%clk 0:02:51.4]} 26.
Qd4+ {[%clk 0:03:35.3]} 26... Qf6 {[%clk 0:02:51]} 27. Qb4 {[%clk 0:03:23.7]}
27... c5 {[%clk 0:02:43.8]} 28. Qb3 {[%clk 0:03:22]} 28... h5 {[%clk 0:02:41.9]}
29. Kf1 {[%clk 0:03:09.8]} 29... Qe5 {[%clk 0:02:36.3]} 30. Qc3 {[%clk
0:03:06.9]} 30... Kf6 {[%clk 0:02:35]} 31. f4 {[%clk 0:02:58]} 31... Qxc3 {[%clk
0:02:26.2]} 32. bxc3 {[%clk 0:02:56.6]} 32... Kf5 {[%clk 0:02:12.1]} 33. g3
{[%clk 0:02:55]} 33... h4 {[%clk 0:02:11.3]} 34. Kf2 {[%clk 0:02:54.1]} 34... b5
{[%clk 0:02:04]} 35. a3 {[%clk 0:02:51.9]} 35... a5 {[%clk 0:01:59.7]} 36. Kf3
{[%clk 0:02:50.6]} 36... hxg3 {[%clk 0:01:57.6]} 37. Kxg3 {[%clk 0:02:48.8]}
37... b4 {[%clk 0:01:51.5]} 38. axb4 {[%clk 0:02:34.9]} 38... axb4 {[%clk
0:01:36.8]} 39. cxb4 {[%clk 0:02:32.4]} 39... cxb4 {[%clk 0:01:36.4]} 0-1